bitfinex-derivatives/quotes_BTCF0:USTF0_20250508
["timestamp","ask_amount","ask_price","bid_price","bid_amount"]
[1746671015832,0.0944,98325.0,98318.0,0.7859]
[1746671016334,0.0015,98335.0,98318.0,0.7859]
[1746671016335,0.20323606,98333.0,98322.0,0.3608]
[1746671016526,0.3748,98355.0,98332.0,0.3608]
[1746671016723,0.0428,98354.0,98345.0,0.09288561]
[1746671016929,0.0428,98354.0,98346.0,0.0428]
[1746671017133,0.0428,98354.0,98347.0,0.07728]
[1746671017336,0.0428,98354.0,98347.0,0.03658]
[1746671018130,0.0508,98354.0,98347.0,0.20458]
[1746671018635,0.0518,98354.0,98347.0,0.26554769]
[1746671018829,0.0518,98354.0,98352.0,0.3608]
[1746671019030,0.0098,98354.0,98353.0,0.0428]
[1746671019231,0.0098,98354.0,98353.0,0.1728]
[1746671019431,0.0098,98354.0,98353.0,0.25004]
[1746671019637,0.0549,98354.0,98353.0,0.25004]
[1746671019837,0.0529,98354.0,98353.0,0.25004]
[1746671020132,0.0621,98354.0,98353.0,0.41904]
[1746671021037,0.2654369,98354.0,98353.0,0.37624]
[1746671021238,0.2654369,98354.0,98353.0,0.20924]
[1746671021435,0.2654369,98354.0,98353.0,0.132]
[1746671021630,0.6262369,98354.0,98353.0,0.07924]
[1746671022227,0.2033493,98348.0,98347.0,0.01126769]
[1746671022431,0.2033493,98348.0,98347.0,0.07724]
[1746671022634,0.2944493,98349.0,98347.0,0.07724]
[1746671023232,0.2033514,98347.0,98346.0,0.0455]
[1746671023433,0.2033514,98347.0,98346.0,0.12274]
[1746671023632,0.2944514,98347.0,98346.0,0.12274]
[1746671024135,0.2944514,98347.0,98346.0,0.12858099]
[1746671024338,0.2974514,98347.0,98346.0,0.05134099]
[1746671024538,0.2974514,98347.0,98346.0,0.07724]
[1746671025740,0.3482901,98347.0,98343.0,0.0455]
[1746671025941,0.3608,98345.0,98344.0,0.07724]
[1746671026241,0.3608,98345.0,98344.0,0.13731499]
[1746671026437,0.009,98347.0,98344.0,0.18041499]
[1746671026832,0.0466,98346.0,98344.0,0.18041499]
[1746671027237,0.2499555,98346.0,98344.0,0.39952023]
[1746671027434,0.0456,98345.0,98344.0,0.39952023]
[1746671028142,0.0456,98345.0,98344.0,0.23152023]
[1746671028638,0.3608,98393.0,98344.0,1.19400423]
[1746671028836,0.0429,98369.0,98361.0,0.3608]
[1746671029050,0.0429,98369.0,98362.0,0.20814]
[1746671029244,0.0429,98369.0,98362.0,0.19745]
[1746671029441,0.0447,98368.0,98362.0,0.19745]
[1746671029643,0.0429,98367.0,98362.0,0.19745]
[1746671029940,0.2033162,98364.0,98362.0,0.1166]
[1746671030138,0.2462183,98363.0,98362.0,0.03]
[1746671030343,0.2462183,98363.0,98361.0,0.35011]
[1746671030545,0.2033203,98362.0,98361.0,0.35011]
[1746671030751,0.2033203,98362.0,98361.0,0.42735]
[1746671031047,0.2462203,98363.0,98361.0,0.42735]
[1746671031238,0.3713203,98362.0,98361.0,0.30941]
[1746671031434,0.3713203,98362.0,98361.0,0.38665]
[1746671031637,0.4148203,98362.0,98361.0,0.38665]
[1746671032838,0.4148203,98362.0,98361.0,0.36984892]
[1746671033246,0.2115,98362.0,98361.0,0.32914892]
[1746671033547,0.4148203,98362.0,98361.0,0.32914892]
[1746671033741,0.4158203,98362.0,98361.0,0.32914892]
[1746671034353,0.169,98362.0,98361.0,0.32914892]
[1746671034940,0.169,98362.0,98361.0,0.25190892]
[1746671035137,0.5651203,98362.0,98361.0,0.001]
[1746671035345,0.2033534,98348.0,98345.0,0.00101682]
[1746671035548,0.2033534,98346.0,98345.0,0.00101682]
[1746671036046,0.2972534,98346.0,98345.0,0.00101682]
[1746671036251,0.4652534,98346.0,98344.0,0.01141206]
[1746671036445,0.4652534,98346.0,98345.0,0.0512]
[1746671037145,0.4652534,98346.0,98345.0,0.0532]
[1746671037547,0.4186534,98346.0,98345.0,0.0512]
[1746671037851,0.4186534,98346.0,98345.0,0.0996]
[1746671038045,0.4186534,98346.0,98345.0,0.0976]
[1746671041045,0.4186534,98346.0,98345.0,0.0956]
[1746671041245,0.4186534,98346.0,98345.0,0.0976]
[1746671041443,0.4186534,98346.0,98345.0,0.004]
[1746671041749,0.8264534,98346.0,98345.0,0.004]
[1746671043153,0.8264534,98346.0,98345.0,0.0442]
[1746671043453,0.4656534,98346.0,98345.0,0.002]
[1746671043956,0.7794534,98346.0,98345.0,0.092]
[1746671044151,0.2033026,98374.0,98345.0,2.441284]
[1746671044451,0.3608,98395.0,98371.0,0.3608]
[1746671044660,0.4089,98395.0,98372.0,0.16724]
[1746671044949,0.0508167,98388.0,98372.0,0.0442]
[1746671045150,0.20331,98367.0,98366.0,0.07724]
[1746671045355,0.20331,98367.0,98366.0,0.03654]
[1746671046254,0.2033183,98363.0,98362.0,0.0458]
[1746671046453,0.2033183,98363.0,98362.0,0.123]
[1746671046757,0.2033183,98363.0,98362.0,0.0458]
[1746671046957,0.0508309,98361.0,98353.0,0.09288561]
[1746671047143,0.2541671,98358.0,98354.0,0.0772]
[1746671047350,0.2541671,98358.0,98355.0,0.0053]
[1746671047551,0.2492311,98357.0,98355.0,0.0053]
[1746671048046,0.2492311,98357.0,98356.0,0.07788]
[1746671048249,0.4172311,98357.0,98356.0,0.07788]
[1746671049454,0.4172311,98357.0,98356.0,0.12438]
[1746671049856,0.4172311,98357.0,98356.0,0.12538]
[1746671050252,0.168,98357.0,98356.0,0.12538]
[1746671050453,0.0476,98389.0,98356.0,0.957852]
[1746671050762,0.0476,98389.0,98379.0,0.09288561]
[1746671050959,0.2032695,98387.0,98380.0,0.21898]
[1746671051255,0.168,98387.0,98386.0,0.3608]
[1746671051657,0.168,98387.0,98386.0,0.4112001]
[1746671053063,0.3732687,98387.0,98386.0,0.4112001]
[1746671053263,0.3732687,98387.0,98386.0,0.3705101]
[1746671053565,0.3732687,98387.0,98386.0,0.0504001]
[1746671053859,0.2032715,98386.0,98380.0,0.13159]
[1746671054061,0.2467715,98386.0,98380.0,0.05371]
[1746671054257,0.2480744,98385.0,98381.0,0.07788]
[1746671054457,0.2115,98386.0,98381.0,0.07788]
[1746671054762,0.2032759,98384.0,98381.0,0.12783399]
[1746671054963,0.0883,98383.0,98381.0,0.17493399]
[1746671055166,0.2563,98383.0,98381.0,0.17493399]
[1746671057265,0.2573,98383.0,98381.0,0.17493399]
[1746671057460,0.4605774,98383.0,98381.0,0.17493399]
[1746671058367,0.203279,98382.0,98381.0,0.04995399]
[1746671058569,0.203279,98382.0,98381.0,0.07788]
[1746671058758,0.292679,98382.0,98381.0,0.07788]
[1746671059266,0.460679,98382.0,98381.0,0.03719]
[1746671059659,0.461679,98382.0,98381.0,0.03719]
[1746671061059,0.461679,98382.0,98381.0,0.08724567]
[1746671061469,0.169,98382.0,98381.0,0.08724567]
[1746671064065,0.372279,98382.0,98381.0,0.08724567]
[1746671064561,0.372279,98382.0,98381.0,0.12789567]
[1746671064761,0.372279,98382.0,98381.0,0.07784]
[1746671064969,0.372279,98382.0,98381.0,0.12971343]
[1746671066662,0.371279,98382.0,98381.0,0.12971343]
[1746671066871,0.371279,98382.0,98381.0,0.13071343]
[1746671067569,0.371279,98382.0,98381.0,0.002]
[1746671067766,0.472923,98382.0,98381.0,0.00045727]
[1746671068170,0.833723,98382.0,98381.0,0.00045727]
[1746671068473,0.20331,98367.0,98361.0,0.07784]
[1746671068671,0.56411,98367.0,98361.0,0.07784]
[1746671068973,0.66577,98367.0,98361.0,0.07784]
[1746671069170,0.73211,98367.0,98363.0,0.05173648]
[1746671069475,0.5714713,98367.0,98361.0,0.07784]
[1746671069774,0.2541472,98365.0,98362.0,0.0954]
[1746671070276,0.3018183,98364.0,98363.0,0.0508293]
[1746671071072,0.3018183,98364.0,98363.0,0.1000293]
[1746671071264,0.4698183,98364.0,98363.0,0.1000293]
[1746671071459,0.4698183,98364.0,98363.0,0.15067766]
[1746671071672,0.4698183,98364.0,98363.0,0.35399596]
[1746671071875,0.4698183,98364.0,98363.0,0.35499596]
[1746671072777,0.4698183,98364.0,98363.0,0.35699596]
[1746671073475,0.4698183,98364.0,98363.0,0.35599596]
[1746671075377,0.4698183,98364.0,98363.0,0.30416666]
[1746671075577,0.4698183,98364.0,98363.0,0.05264836]
[1746671075777,0.4698183,98364.0,98363.0,0.002]
[1746671076877,0.4698183,98364.0,98363.0,0.2053183]
[1746671077078,0.3183294,98364.0,98363.0,0.001]
[1746671077378,0.5216456,98364.0,98363.0,0.001]
[1746671077882,0.2033203,98362.0,98361.0,0.05180258]
[1746671078078,0.2033286,98358.0,98357.0,0.2033304]
[1746671078382,0.050834,98355.0,98351.0,0.0508357]
[1746671078576,0.203339,98353.0,98352.0,0.00152513]
[1746671078776,0.203339,98353.0,98352.0,0.05209931]
[1746671078976,0.295739,98353.0,98352.0,0.00152513]
[1746671079173,0.2033431,98351.0,98350.0,0.11225124]
[1746671079380,0.2033431,98351.0,98350.0,0.02090077]
[1746671079678,0.2033534,98347.0,98346.0,0.2033532]
[1746671079880,0.5641534,98347.0,98346.0,0.2033532]
[1746671080069,0.8270534,98347.0,98346.0,0.2033532]
[1746671080271,0.8270534,98347.0,98346.0,0.1626432]
[1746671081077,0.8270534,98347.0,98346.0,0.1646432]
[1746671081780,0.7789534,98347.0,98346.0,0.1646432]
[1746671081982,0.7789534,98347.0,98346.0,0.2574432]
[1746671082279,0.7789534,98347.0,98346.0,0.2594432]
[1746671082577,0.3608,98366.0,98346.0,0.74112319]
[1746671082781,0.2033045,98370.0,98369.0,0.2033038]
[1746671082972,0.2033045,98370.0,98369.0,0.2970038]
[1746671083168,0.3713045,98370.0,98369.0,0.2970038]
[1746671083368,0.3713045,98370.0,98369.0,0.2563038]
[1746671083881,0.3713045,98370.0,98369.0,0.2593038]
[1746671084177,0.168,98370.0,98369.0,0.3386138]
[1746671084875,0.0461,98387.0,98369.0,0.3386138]
[1746671084876,0.105,98400.0,98399.0,0.2032439]
[1746671085076,0.105,98400.0,98399.0,1.1702439]
[1746671085270,0.3082418,98400.0,98399.0,1.1295639]
[1746671085980,0.3082418,98400.0,98399.0,1.2267639]
[1746671086181,0.4832418,98400.0,98399.0,1.0597639]
[1746671086383,0.4832418,98400.0,98399.0,1.11034064]
[1746671086577,0.28,98400.0,98399.0,1.60196864]
[1746671086778,0.27583111,98400.0,98399.0,1.35196864]
[1746671087175,0.10783111,98400.0,98399.0,1.31128864]
[1746671087586,0.10783111,98400.0,98399.0,1.31907272]
[1746671088080,0.27583111,98400.0,98399.0,1.31907272]
[1746671089182,0.10783111,98400.0,98399.0,1.31907272]
[1746671089883,0.10783111,98400.0,98399.0,1.07744472]
[1746671090082,0.27583111,98400.0,98399.0,1.07744472]
[1746671090386,0.27483111,98400.0,98399.0,1.07744472]
[1746671090586,0.27483111,98400.0,98399.0,1.00004472]
[1746671090788,0.27483111,98400.0,98399.0,1.07744472]
[1746671091088,0.27483111,98400.0,98399.0,1.06966064]
[1746671091288,0.26783111,98400.0,98399.0,1.06866064]
[1746671093086,0.173,98400.0,98399.0,1.06866064]
[1746671093291,0.00146001,98405.0,98404.0,0.2032336]
[1746671094185,0.21836001,98405.0,98404.0,0.2032336]
[1746671094384,0.1534669,98405.0,98400.0,0.0508101]
[1746671094686,0.12021706,98405.0,98404.0,0.2032336]
[1746671094887,0.12121706,98405.0,98404.0,0.2032336]
[1746671095282,0.12121706,98405.0,98404.0,0.1625536]
[1746671095977,0.12121706,98405.0,98404.0,0.2399136]
[1746671096182,0.17221706,98405.0,98404.0,0.1992336]
[1746671096388,0.22001706,98405.0,98404.0,0.1992336]
[1746671096588,0.21901706,98405.0,98404.0,0.1992336]
[1746671097383,0.17121706,98405.0,98404.0,0.1992336]
[1746671097585,0.17221706,98405.0,98404.0,0.1992336]
[1746671098286,0.03242706,98405.0,98404.0,0.4108536]
[1746671098688,0.03242706,98405.0,98404.0,0.3008536]
[1746671098888,0.03242706,98405.0,98404.0,0.1992336]
[1746671099186,0.03242706,98405.0,98404.0,0.07736]
[1746671099687,0.03242706,98405.0,98404.0,0.2805936]
[1746671099893,0.03242706,98405.0,98404.0,0.07736]
[1746671100094,0.13132706,98405.0,98404.0,0.2805936]
[1746671100284,0.13132706,98405.0,98404.0,0.2399136]
[1746671100480,0.13132706,98405.0,98404.0,0.2032336]
[1746671100693,0.13132706,98405.0,98404.0,0.2805936]
[1746671101685,0.33455856,98405.0,98404.0,0.07736]
[1746671101886,0.33455856,98405.0,98404.0,0.2805936]
[1746671102193,0.33455856,98405.0,98404.0,0.2399136]
[1746671102687,0.13132706,98405.0,98404.0,0.2399136]
[1746671102888,0.13132706,98405.0,98404.0,0.2032336]
[1746671103089,0.13132706,98405.0,98404.0,0.2805936]
[1746671103392,0.13132706,98405.0,98404.0,0.3295936]
[1746671103586,0.08142706,98405.0,98404.0,0.3295936]
[1746671103787,0.001,98406.0,98405.0,0.2032315]
[1746671103992,0.001,98406.0,98405.0,0.2985315]
[1746671104296,0.169,98406.0,98405.0,0.2578515]
[1746671104995,0.17,98406.0,98405.0,0.2578515]
[1746671106589,0.2169,98406.0,98405.0,0.2578515]
[1746671106896,0.17,98406.0,98405.0,0.2578515]
[1746671108696,0.17,98406.0,98405.0,0.2115515]
[1746671108891,0.17,98406.0,98405.0,0.2612515]
[1746671109693,0.0462,98437.0,98405.0,0.73652]
[1746671109899,0.2031846,98428.0,98427.0,0.2031861]
[1746671110092,0.3711846,98428.0,98427.0,0.0484]
[1746671110292,0.3711846,98428.0,98427.0,0.2031861]
[1746671110888,0.2031861,98427.0,98426.0,0.3608]
[1746671111094,0.2542861,98427.0,98426.0,0.5639881]
[1746671111392,0.3013861,98427.0,98426.0,0.5639881]
[1746671112194,0.3103861,98427.0,98426.0,0.5649881]
[1746671112595,0.3013861,98427.0,98426.0,0.5639881]
[1746671112794,0.3033861,98427.0,98426.0,0.5639881]
[1746671113001,0.002,98427.0,98426.0,0.5639881]
[1746671113592,0.002,98427.0,98426.0,0.6124881]
[1746671113992,0.2051861,98427.0,98426.0,0.6124881]
[1746671114194,0.2051861,98427.0,98426.0,0.5639881]
[1746671115702,0.2089861,98427.0,98426.0,0.5639881]
[1746671116603,0.2089861,98427.0,98426.0,0.54619894]
[1746671117000,0.0058,98427.0,98426.0,0.54619894]
[1746671117301,0.2559861,98427.0,98426.0,0.71419894]
[1746671118206,0.2559861,98427.0,98426.0,0.54619894]
[1746671118898,0.2559861,98427.0,98426.0,0.59419894]
[1746671119099,0.4239861,98427.0,98426.0,0.54619894]
[1746671119403,0.2031923,98424.0,98423.0,0.07744]
[1746671119904,0.2031923,98424.0,98423.0,0.2806343]
[1746671120104,0.3711923,98424.0,98423.0,0.2806343]
[1746671120407,0.3711923,98424.0,98423.0,0.2399643]
[1746671120905,0.3731923,98424.0,98423.0,0.2399643]
[1746671121407,0.17,98424.0,98423.0,0.2399643]
[1746671122104,0.002,98424.0,98423.0,0.2399643]
[1746671123208,0.2207,98424.0,98423.0,0.2399643]
[1746671123510,0.17,98424.0,98423.0,0.2399643]
[1746671123703,0.17,98424.0,98423.0,0.2806343]
[1746671124210,0.002,98424.0,98423.0,0.4486343]
[1746671125005,0.002,98424.0,98423.0,0.43084406]
[1746671125206,0.002,98424.0,98423.0,0.26284406]
[1746671126208,0.002,98424.0,98423.0,0.22217406]
[1746671126407,0.002,98424.0,98423.0,0.34217406]
[1746671127002,0.1599668,98437.0,98436.0,0.2031675]
[1746671127199,0.0015,98440.0,98439.0,0.2031613]
[1746671127403,0.0015,98440.0,98439.0,0.4006013]
[1746671127706,0.0015,98440.0,98439.0,0.2806013]
[1746671128108,0.0015,98440.0,98439.0,0.4486013]
[1746671128409,0.0025,98440.0,98439.0,0.4079313]
[1746671129110,0.0025,98440.0,98439.0,0.3599313]
[1746671129306,0.0025,98440.0,98439.0,0.3192713]
[1746671130301,0.0025,98440.0,98439.0,0.4308553]
[1746671130611,0.3608,98504.0,98456.0,0.507812]
[1746671130813,0.12910379,98497.0,98496.0,0.3608]
[1746671131112,0.2030417,98497.0,98496.0,0.07744]
[1746671131299,0.2030417,98497.0,98496.0,0.2048]
[1746671131505,7.02952574,98500.0,98496.0,0.21257461]
[1746671131812,6.85199744,98500.0,98499.0,0.5638376]
[1746671132107,3.58464863,98500.0,98499.0,0.8618376]
[1746671132308,3.58464863,98500.0,98499.0,1.17273159]
[1746671132309,2.83234886,98500.0,98499.0,1.17273159]
[1746671132499,2.57523886,98500.0,98499.0,0.8212076]
[1746671132701,2.57523886,98500.0,98499.0,0.61817]
[1746671132904,2.57523886,98500.0,98499.0,0.8212076]
[1746671133126,2.57259904,98500.0,98499.0,0.8986476]
[1746671133408,2.57259904,98500.0,98499.0,0.52498]
[1746671133613,3.68173454,98500.0,98499.0,0.24544]
[1746671133812,3.68173454,98500.0,98499.0,0.176]
[1746671133813,3.68573454,98500.0,98499.0,0.176]
[1746671134105,2.57659904,98500.0,98499.0,0.3790376]
[1746671134315,2.57259904,98500.0,98499.0,0.4217976]
[1746671134513,3.68173454,98500.0,98499.0,0.21876]
[1746671134811,4.69697454,98500.0,98499.0,0.21376]
[1746671135013,4.69697454,98500.0,98499.0,0.21176]
[1746671135199,4.69697454,98500.0,98499.0,0.007]
[1746671135200,5.46387454,98500.0,98499.0,0.007]
[1746671135402,5.46387454,98500.0,98474.0,0.3608]
[1746671135403,0.4061,98481.0,98477.0,0.2846412]
[1746671135706,0.4061,98481.0,98477.0,0.08156]
[1746671135707,0.0523,98480.0,98477.0,0.08156]
[1746671135909,0.1026,98480.0,98479.0,0.2030788]
[1746671136099,0.0523,98480.0,98479.0,0.37871621]
[1746671136303,2.57259904,98500.0,98499.0,0.2060376]
[1746671136500,2.57259904,98500.0,98499.0,0.003]
[1746671136708,3.31557904,98500.0,98499.0,0.003]
[1746671136911,4.73691904,98500.0,98499.0,0.003]
[1746671137100,4.73691904,98500.0,98499.0,0.3730376]
[1746671137301,4.93995454,98500.0,98499.0,0.17]
[1746671137703,4.73691904,98500.0,98499.0,0.3730376]
[1746671138014,4.93995454,98500.0,98499.0,0.173]
[1746671138513,5.18995454,98500.0,98499.0,0.173]
[1746671138811,5.18995454,98500.0,98499.0,0.0934]
[1746671139016,0.0507631,98492.0,98459.0,0.3608]
[1746671139203,1.0152953,98471.0,98470.0,0.09242265]
[1746671139403,1.0152953,98471.0,98470.0,0.04091]
[1746671139607,1.92814,98471.0,98470.0,0.04091]
[1746671139808,1.92814,98471.0,98470.0,0.40171]
[1746671140008,1.92814,98471.0,98470.0,0.6048073]
[1746671140209,1.92814,98471.0,98470.0,0.7429473]
[1746671140511,0.3608,98485.0,98484.0,0.2030685]
[1746671140713,0.4061,98481.0,98474.0,0.3608]
[1746671140917,0.08,98488.0,98474.0,0.3608]
[1746671141103,0.4061,98490.0,98489.0,0.2030582]
[1746671141309,0.4061,98490.0,98489.0,0.1624082]
[1746671141512,1.42134,98490.0,98487.0,0.2030607]
[1746671141718,0.4061,98488.0,98487.0,0.2030607]
[1746671142212,0.0993,98488.0,98487.0,0.3710607]
[1746671142721,0.0993,98488.0,98487.0,0.3710623]
[1746671143017,0.0993,98488.0,98487.0,0.4228623]
[1746671143210,1.92674,98488.0,98487.0,0.3710623]
[1746671143406,1.92674,98488.0,98487.0,0.168]
[1746671143407,2.4916002,98488.0,98487.0,0.168]
[1746671143613,0.203087,98475.0,98474.0,0.004]
[1746671143815,2.030527,98475.0,98474.0,0.004]
[1746671144215,0.6091891,98474.0,98473.0,0.04491]
[1746671144514,0.0985,98474.0,98473.0,0.2030912]
[1746671144724,0.0478,98474.0,98473.0,0.2030912]
[1746671145018,0.0478,98474.0,98473.0,0.2846512]
[1746671145220,0.0478,98474.0,98473.0,0.4526512]
[1746671145609,0.0478,98474.0,98473.0,0.4566512]
[1746671146416,0.0478,98474.0,98473.0,0.4596512]
[1746671146923,0.0515,98474.0,98473.0,0.4596512]
[1746671149716,0.0015,98474.0,98473.0,0.3780912]
[1746671150321,1.42284,98474.0,98473.0,0.4328912]
[1746671151310,1.32284,98474.0,98473.0,0.4328912]
[1746671152718,1.01524,98474.0,98473.0,0.4328912]
[1746671152926,0.0526,98478.0,98477.0,0.2030829]
[1746671153119,0.0526,98478.0,98477.0,0.3710829]
[1746671153120,1.06784,98478.0,98477.0,0.3710829]
[1746671153317,1.78154,98478.0,98477.0,0.3710829]
[1746671153519,1.01524,98478.0,98477.0,0.3710829]
[1746671153824,1.01524,98478.0,98477.0,0.7318829]
[1746671154215,2.2928209,98478.0,98477.0,0.12735]
[1746671154522,2.54312821,98500.0,98477.0,0.74015]
[1746671154723,2.36459482,98500.0,98499.0,0.2030376]
[1746671154915,2.18959482,98500.0,98499.0,0.4145976]
[1746671155113,2.18090483,98500.0,98499.0,0.8325976]
[1746671155319,0.84672119,98500.0,98499.0,0.7919676]
[1746671155617,0.56677939,98500.0,98499.0,0.7104076]
[1746671155815,0.39847939,98500.0,98499.0,0.7919676]
[1746671156215,0.21648831,98500.0,98499.0,0.4197776]
[1746671156418,0.21648831,98500.0,98499.0,0.5013376]
[1746671156621,0.16575071,98500.0,98499.0,0.7513376]
[1746671157121,0.08349193,98500.0,98499.0,0.7513376]
[1746671157325,0.0015,98510.0,98509.0,0.2030169]
[1746671157522,0.0015,98510.0,98509.0,0.5738169]
[1746671158211,0.0015,98510.0,98509.0,0.7011869]
[1746671158724,0.0015,98510.0,98509.0,0.7061869]
[1746671158915,0.0015,98510.0,98509.0,0.7121869]
[1746671159825,0.0015,98510.0,98509.0,0.8321869]
[1746671160332,0.0015,98510.0,98509.0,0.7915569]
[1746671160513,0.108,98541.0,98525.0,0.202984]
[1746671160824,0.0516,98541.0,98525.0,1.046104]
[1746671161018,0.0015,98545.0,98538.0,0.0507389]
[1746671161218,0.0015,98545.0,98544.0,0.1623248]
[1746671161418,0.0015,98545.0,98544.0,0.2438448]
[1746671161623,0.0015,98545.0,98544.0,0.24355035]
[1746671161920,0.31296493,98550.0,98549.0,0.2029345]
[1746671162118,0.31296493,98550.0,98549.0,0.168]
[1746671162420,1.87724293,98550.0,98549.0,0.17732093]
[1746671162917,0.31296493,98550.0,98549.0,0.38025543]
[1746671163124,1.47114293,98550.0,98549.0,0.17732093]
[1746671163315,1.87724293,98550.0,98549.0,0.33963543]
[1746671163516,1.67431043,98550.0,98549.0,0.33963543]
[1746671164622,0.62056493,98550.0,98549.0,0.34063543]
[1746671164821,0.62056493,98550.0,98549.0,0.34263543]
[1746671165219,0.48208,98555.0,98554.0,0.2029242]
[1746671165419,0.07598,98555.0,98554.0,0.2029242]
[1746671165620,1.4373255,98555.0,98554.0,0.2029242]
[1746671166221,1.0312255,98555.0,98554.0,0.3303042]
[1746671166622,0.3624,98555.0,98554.0,0.3303042]
[1746671166828,1.6190677,98555.0,98554.0,0.168]
[1746671167027,0.2029325,98550.0,98549.0,0.001]
[1746671167222,0.4061,98541.0,98533.0,0.44368]
[1746671167428,0.3076,98537.0,98536.0,0.2029613]
[1746671167629,0.051,98540.0,98539.0,0.2029551]
[1746671168034,0.3586,98540.0,98539.0,0.2858351]
[1746671168330,0.3586,98540.0,98539.0,0.4538351]
[1746671168833,0.3076,98540.0,98539.0,0.4558351]
[1746671169330,0.3076,98540.0,98539.0,0.46349118]
[1746671169923,0.3076,98540.0,98539.0,0.38061118]
[1746671170120,0.3076,98540.0,98539.0,0.46349118]
[1746671170921,0.3076,98540.0,98539.0,0.46249118]
[1746671171132,0.3076,98540.0,98539.0,0.38061118]
[1746671171323,0.0518,98546.0,98545.0,0.2029428]
[1746671171729,1.4131455,98546.0,98545.0,0.2029428]
[1746671171934,1.0070455,98546.0,98545.0,0.2029428]
[1746671172135,1.9768862,98546.0,98545.0,0.168]
[1746671172436,2.2268862,98546.0,98545.0,1e-08]
[1746671172736,2.2268862,98546.0,98545.0,0.00100001]
[1746671172939,2.3068862,98546.0,98545.0,0.00100001]
[1746671173239,0.7137,98536.0,98535.0,0.1653324]
[1746671173430,0.9474455,98546.0,98533.0,0.2029671]
[1746671173431,1.3613455,98534.0,98533.0,0.2029671]
[1746671173630,0.2029696,98532.0,98531.0,0.202971]
[1746671173823,0.6476455,98532.0,98531.0,0.202971]
[1746671174027,1.3613455,98532.0,98531.0,0.285851]
[1746671174227,1.4715455,98532.0,98531.0,0.285851]
[1746671174634,1.4215455,98532.0,98531.0,0.285851]
[1746671174832,1.4215455,98532.0,98531.0,0.29430302]
[1746671175136,1.4215455,98532.0,98531.0,0.3451152]
[1746671175329,0.1102,98532.0,98531.0,0.3451152]
[1746671175531,0.1102,98532.0,98531.0,0.3461152]
[1746671175730,0.3608,98546.0,98545.0,0.2029428]
[1746671176234,1.6721455,98546.0,98545.0,0.1623228]
[1746671176534,1.3113455,98546.0,98545.0,0.1623228]
[1746671176944,1.3153455,98546.0,98545.0,0.1623228]
[1746671177237,1.3153455,98546.0,98545.0,0.3303228]
[1746671177833,1.3173455,98546.0,98545.0,0.3303228]
[1746671178533,1.3153455,98546.0,98545.0,0.3303228]
[1746671178728,1.3173455,98546.0,98545.0,0.3303228]
[1746671178929,1.5202862,98546.0,98545.0,0.3303228]
[1746671179431,1.5172862,98546.0,98545.0,0.169]
[1746671180033,1.5142862,98546.0,98545.0,0.169]
[1746671180336,1.5142862,98546.0,98545.0,0.12838]
[1746671180641,1.5152862,98546.0,98545.0,0.12838]
[1746671180936,1.5152862,98546.0,98545.0,0.12738]
[1746671181137,1.5152862,98546.0,98545.0,0.12838]
[1746671181339,1.8760862,98546.0,98545.0,0.12838]
[1746671181841,1.8760862,98546.0,98545.0,0.12738]
[1746671181842,1.8770862,98546.0,98545.0,0.12738]
[1746671182041,1.6741455,98546.0,98545.0,0.12738]
[1746671182238,1.8770862,98546.0,98545.0,0.12738]
[1746671182541,1.6741455,98546.0,98545.0,0.3303228]
[1746671182742,1.8770862,98546.0,98545.0,0.3303228]
[1746671183131,1.8760862,98546.0,98545.0,0.12738]
[1746671183342,1.8770862,98546.0,98545.0,0.12738]
[1746671183842,1.6751455,98546.0,98545.0,0.3303228]
[1746671184246,1.6731455,98546.0,98545.0,0.3303228]
[1746671184441,1.8770862,98546.0,98545.0,0.3303228]
[1746671184643,1.5162862,98546.0,98545.0,0.3303228]
[1746671184835,1.3123455,98546.0,98545.0,0.3303228]
[1746671185037,1.5152862,98546.0,98545.0,0.3303228]
[1746671185543,1.5142862,98546.0,98545.0,0.3303228]
[1746671186040,1.3113455,98546.0,98545.0,0.3303228]
[1746671187244,1.5142862,98546.0,98545.0,0.3303228]
[1746671187438,1.5142862,98546.0,98545.0,0.12738]
[1746671188339,1.8750862,98546.0,98545.0,0.12738]
[1746671189245,0.2029572,98538.0,98536.0,0.08288]
[1746671189446,0.6090572,98538.0,98536.0,0.08288]
[1746671189645,1.2067027,98538.0,98535.0,0.0507407]
[1746671189942,1.3230027,98538.0,98536.0,0.08288]
[1746671190248,1.6306027,98538.0,98537.0,0.5288]
[1746671190546,1.6316027,98538.0,98537.0,0.5288]
[1746671190838,1.6306027,98538.0,98537.0,0.7317593]
[1746671191037,1.4286455,98538.0,98537.0,0.7317593]
[1746671191239,1.6316027,98538.0,98537.0,0.6911393]
[1746671191439,1.4286455,98538.0,98537.0,0.6911393]
[1746671192046,1.4286455,98538.0,98537.0,0.7444393]
[1746671192445,1.4276455,98538.0,98537.0,0.7444393]
[1746671192642,1.0625455,98538.0,98537.0,0.8022393]
[1746671193546,1.0625455,98538.0,98537.0,0.8851193]
[1746671194140,1.2655027,98538.0,98537.0,0.8851193]
[1746671194340,1.0625455,98538.0,98537.0,0.8851193]
[1746671194642,1.3701455,98538.0,98537.0,0.8851193]
[1746671194941,1.0625455,98538.0,98537.0,0.8851193]
[1746671196542,0.5986455,98538.0,98537.0,0.8851193]
[1746671196743,0.8016027,98538.0,98537.0,0.8851193]
[1746671197144,0.8544027,98538.0,98537.0,0.8851193]
[1746671197650,0.6514455,98538.0,98537.0,0.8851193]
[1746671198242,1.3651455,98538.0,98537.0,0.8851193]
[1746671198444,1.4226455,98538.0,98537.0,0.8851193]
[1746671199055,1.4226455,98538.0,98537.0,0.5649393]
[1746671199445,1.3698455,98538.0,98537.0,0.5649393]
[1746671200849,1.0622455,98538.0,98537.0,0.5649393]
[1746671201151,0.6561455,98538.0,98537.0,0.5649393]
[1746671201759,0.5986455,98538.0,98537.0,0.5649393]
[1746671202243,0.5986455,98538.0,98537.0,0.5243193]
[1746671203445,1.5153027,98538.0,98537.0,0.4132193]
[1746671204343,1.5153027,98538.0,98537.0,0.19249081]
[1746671204745,1.5153027,98538.0,98537.0,0.10961081]
[1746671205048,1.5153027,98538.0,98537.0,0.39357011]
[1746671205248,1.5153027,98538.0,98537.0,0.35295011]
[1746671206949,1.3123455,98538.0,98537.0,0.27195011]
[1746671207160,0.48350542,98538.0,98537.0,0.41015011]
[1746671207348,0.48350542,98538.0,98537.0,0.46405011]
[1746671208754,0.3076,98547.0,98546.0,0.2029407]
[1746671208945,0.3608,98566.0,98555.0,0.0507301]